bitfinex/quotes_ETHUSD_20241105
["timestamp","ask_amount","ask_price","bid_price","bid_amount"]
[1730776118982,5.98857179,2414.1,2414.0,0.29182232]
[1730776118983,5.94687179,2414.1,2414.0,0.29182232]
[1730776122555,4.14251,2414.0,2413.6,4.14309]
[1730776122756,4.14251,2414.0,2413.7,1.34186638]
[1730776123074,4.14251,2414.0,2413.8,0.75843503]
[1730776123248,4.14251,2414.0,2413.9,0.75843503]
[1730776124045,1.984409,2414.0,2413.9,0.75843503]
[1730776125050,0.7804,2414.0,2413.9,0.75843503]
[1730776126147,4.9229,2414.0,2413.9,0.75843503]
[1730776127690,4.9229,2414.0,2413.9,0.29170138]
[1730776127691,7.9229,2414.0,2413.9,0.29170138]
[1730776128876,9.581773,2414.0,2413.9,0.29170138]
[1730776129079,10.9551843,2414.0,2413.9,0.29170138]
[1730776129887,4.14285,2413.8,2413.4,4.14339]
[1730776130074,15.0978443,2414.0,2413.4,8.2868]
[1730776130279,10.9551843,2414.0,2413.5,1.34223858]
[1730776130492,10.9551843,2414.0,2413.6,1.34223858]
[1730776130697,10.9551843,2414.0,2413.7,0.7586454]
[1730776130912,0.91178506,2413.9,2413.8,0.7586454]
[1730776131194,5.05448506,2413.9,2413.8,0.7586454]
[1730776131968,0.21487604,2413.9,2413.8,0.7586454]
[1730776132682,0.21487604,2413.9,2413.8,1.34235265]
[1730776133026,0.21487604,2413.9,2413.8,1.34235042]
[1730776133204,0.21487604,2413.9,2413.8,0.7586454]
[1730776133400,4.35754604,2413.9,2413.8,0.75885873]
[1730776133723,5.75146864,2413.9,2413.8,0.75885873]
[1730776136220,6.52416864,2413.9,2413.8,0.75885873]
[1730776139999,6.52416864,2413.9,2413.0,0.48648236]
[1730776140000,4.14353,2413.4,2413.0,0.48648236]
[1730776140343,0.21449821,2413.3,2413.1,1.34443604]
[1730776140540,0.21449821,2413.3,2413.2,1.34443604]
[1730776141318,4.14398,2413.2,2412.7,6.64420139]
[1730776141649,4.14398,2413.2,2412.9,0.48743368]
[1730776141650,4.144,2413.2,2412.9,0.48743368]
[1730776141938,4.14407,2413.1,2413.0,1.34524149]
[1730776142141,4.90047,2413.1,2413.0,0.76034267]
[1730776142369,8.729277,2413.1,2413.0,0.29243508]
[1730776142532,7.14423,2413.0,2412.5,5.43521976]
[1730776142732,7.14423,2413.0,2412.6,1.34369358]
[1730776143074,7.14423,2413.0,2412.7,1.34369358]
[1730776143276,7.14423,2413.0,2412.8,0.75897875]
[1730776143475,4.14456,2412.8,2412.6,0.5839303]
[1730776143804,4.14456,2412.8,2412.3,5.4289293]
[1730776143805,7.14456,2412.8,2412.7,0.75913886]
[1730776143926,7.89996,2412.8,2412.7,0.75913886]
[1730776144125,7.89996,2412.8,2412.7,0.29197208]
[1730776144438,9.21732168,2412.8,2412.7,0.29197208]
[1730776145992,9.43036941,2412.8,2412.7,0.29197208]
[1730776146909,9.43036941,2412.8,2412.7,0.2927823]
[1730776147271,9.43036941,2412.8,2412.3,5.52800274]
[1730776147469,9.43036941,2412.8,2412.4,0.76098467]
[1730776147668,9.43036941,2412.8,2412.5,0.29268208]
[1730776147868,9.43036941,2412.8,2412.6,0.29268208]
[1730776148094,9.43036941,2412.8,2412.4,0.46829856]
[1730776148297,9.43036941,2412.8,2412.5,0.29259955]
[1730776148605,9.43036941,2412.8,2412.6,0.29259955]
[1730776148770,9.43036941,2412.8,2412.4,0.46813876]
[1730776148973,9.43036941,2412.8,2412.5,0.29258027]
[1730776149187,9.43036941,2412.8,2412.6,0.29258027]
[1730776149500,9.43036941,2412.8,2412.3,4.94241]
[1730776149710,8.11300773,2412.8,2412.4,0.76008399]
[1730776150005,8.11300773,2412.8,2412.3,4.94241]
[1730776150006,8.11300773,2412.8,2412.5,0.29233567]
[1730776150301,8.11300773,2412.8,2412.4,0.46768933]
[1730776150504,8.11300773,2412.8,2412.3,4.94241]
[1730776150654,8.11300773,2412.8,2412.5,0.29221841]
[1730776150853,8.11300773,2412.8,2412.3,4.94241]
[1730776151100,3.96844773,2412.8,2412.4,0.29220353]
[1730776151270,4.14475,2412.7,2412.5,0.29220353]
[1730776151474,4.14475,2412.7,2412.3,0.797]
[1730776151698,4.14475,2412.7,2412.4,0.29213512]
[1730776151903,0.21304773,2412.6,2412.5,0.29213512]
[1730776152585,4.35794773,2412.6,2412.5,0.29213512]
[1730776152782,8.1692675,2412.6,2412.5,0.29213512]
[1730776152984,8.1692675,2412.6,2412.2,0.46746066]
[1730776152985,4.14526,2412.4,2412.2,0.46746066]
[1730776153200,4.14526,2412.4,2412.3,0.29219601]
[1730776153691,4.14526,2412.4,2412.1,0.7558]
[1730776153865,4.14526,2412.4,2412.2,0.29218084]
[1730776154070,9.52121977,2412.6,2412.3,0.29218084]
[1730776154388,4.14509,2412.5,2412.1,0.7558]
[1730776154558,4.14509,2412.5,2412.2,0.2921237]
[1730776154901,4.14509,2412.5,2412.3,0.2921237]
[1730776155056,4.14509,2412.5,2412.1,0.7558]
[1730776155261,4.14509,2412.5,2412.2,0.29207097]
[1730776155471,4.14509,2412.5,2412.3,0.29207097]
[1730776155699,4.14509,2412.5,2412.1,0.7558]
[1730776156008,4.14509,2412.5,2412.2,0.29207283]
[1730776156186,4.14509,2412.5,2412.3,0.29207283]
[1730776156384,4.14509,2412.5,2412.1,0.7558]
[1730776156706,4.14509,2412.5,2412.2,0.29205246]
[1730776156908,4.14509,2412.5,2412.3,0.29205246]
[1730776157084,4.14509,2412.5,2412.1,0.7558]
[1730776157340,4.14509,2412.5,2412.2,0.29202593]
[1730776157488,4.14525,2412.4,2412.3,0.29202593]
[1730776159704,4.99412424,2412.4,2412.3,0.29202593]
[1730776159856,4.14509,2412.5,2412.3,0.29202593]
[1730776160061,4.565,2412.6,2411.9,5.48122547]
[1730776160062,0.797,2412.6,2412.2,4.94978]
[1730776160261,3.0,2412.7,2412.3,4.9045476]
[1730776160460,3.0,2412.7,2412.4,0.29200814]
[1730776160656,1.659623,2413.0,2412.4,4.14524]
[1730776160898,3.0,2412.9,2412.5,5.24121172]
[1730776161097,7.35626175,2412.9,2412.6,0.29201172]
[1730776161303,7.35626175,2412.9,2412.5,0.8042]
[1730776161713,7.35626175,2412.9,2412.6,0.29204995]
[1730776161876,7.35626175,2412.9,2412.5,0.8042]
[1730776162076,0.21184175,2412.9,2412.6,4.97335793]
[1730776162301,0.21184175,2412.9,2412.7,0.29209153]
[1730776162599,0.21184175,2412.9,2412.6,4.6812664]
[1730776162905,0.21184175,2412.9,2412.7,0.29215799]
[1730776163198,0.21184175,2412.9,2412.6,4.6812664]
[1730776163505,0.21184175,2412.9,2412.7,0.84081422]
[1730776163818,0.21184175,2412.9,2412.8,0.29226758]
[1730776164909,0.21184175,2412.9,2412.8,1.09786758]
[1730776165107,0.21184175,2412.9,2412.8,1.09799205]
[1730776165890,0.21184175,2412.9,2412.8,0.8056]
[1730776166095,0.21184175,2412.9,2412.8,1.09811252]
[1730776166295,0.21184175,2412.9,2412.8,1.56631954]
[1730776166493,0.21184175,2412.9,2412.8,1.09811252]
[1730776167315,0.21184175,2412.9,2412.8,1.56659835]
[1730776168008,0.21184175,2412.9,2412.8,4.09852772]
[1730776168170,0.21184175,2412.9,2412.8,8.82864403]
[1730776168371,3.0,2413.2,2412.8,8.82864403]
[1730776168608,3.0,2413.2,2412.9,4.14438]
[1730776168814,0.21249592,2413.1,2413.0,0.76162748]
[1730776169125,0.21249592,2413.1,2413.0,4.3331714]
[1730776169426,4.14354,2413.4,2413.0,4.3331714]
[1730776169724,4.14354,2413.4,2413.1,1.34746274]
[1730776169927,0.7752,2413.6,2413.2,0.76162748]
[1730776170085,4.14308,2413.7,2413.2,0.76162748]
[1730776170086,4.14308,2413.7,2413.3,2.12138838]
[1730776170284,4.14308,2413.7,2413.4,0.76162748]
[1730776170502,4.14308,2413.7,2413.5,0.29292932]
[1730776170700,4.14308,2413.7,2413.6,0.29292932]
[1730776170930,0.8247,2413.8,2413.6,0.29292932]
[1730776171130,4.96754,2413.8,2413.4,4.1435]
[1730776171318,7.14305,2413.7,2413.5,0.29285116]
[1730776171487,7.14305,2413.7,2413.6,0.29285116]
[1730776171997,4.14301,2413.7,2413.6,0.29285116]
[1730776172202,7.14301,2413.7,2413.3,4.91726]
[1730776172402,7.14301,2413.7,2413.4,0.2929024]
[1730776172624,7.14301,2413.7,2413.5,0.2929024]
[1730776172787,7.14301,2413.7,2413.6,0.2929024]
[1730776172991,3.0,2413.7,2413.6,0.2929024]
[1730776173213,7.14301,2413.7,2413.3,5.408986]
[1730776173415,7.14301,2413.7,2413.4,1.22026125]
[1730776173609,7.14301,2413.7,2413.5,0.29271764]
[1730776173831,7.14301,2413.7,2413.4,0.4591844]
[1730776173991,7.14301,2413.7,2413.5,0.29272199]
[1730776174186,7.14301,2413.7,2413.4,0.4591844]
[1730776174187,4.14249,2414.1,2413.6,5.21639199]
[1730776174513,4.14269,2413.9,2413.7,0.29272199]
[1730776174718,4.14269,2413.9,2413.8,0.29272199]
[1730776175120,4.91708,2413.8,2413.4,1.3657498]
[1730776175326,4.91708,2413.8,2413.5,0.76033757]
[1730776175500,4.91708,2413.8,2413.6,0.29243591]
[1730776175699,4.91708,2413.8,2413.7,0.29244908]
[1730776176182,4.91708,2413.8,2413.1,0.7657]
[1730776176183,4.14336,2413.5,2413.1,0.7657]
[1730776176466,4.14336,2413.5,2413.2,0.76017536]
[1730776176665,4.14336,2413.5,2413.3,0.76017536]
[1730776176820,4.14336,2413.5,2413.4,0.29237082]
[1730776177351,4.14353,2413.4,2413.2,0.46780946]
[1730776177549,7.14353,2413.4,2413.3,0.29239864]
[1730776177727,4.14371,2413.3,2413.0,0.46785867]
[1730776178037,4.14371,2413.3,2413.1,0.29241935]
[1730776178227,4.14371,2413.3,2413.2,0.29241935]
[1730776178925,4.14371,2413.3,2413.0,0.46789844]
[1730776179119,4.14371,2413.3,2413.1,0.29242413]
[1730776179460,4.14371,2413.3,2412.9,0.8037]
[1730776179666,4.14371,2413.3,2413.0,0.29243167]
[1730776179965,11.28718,2413.4,2413.1,0.29243167]
[1730776180140,11.28718,2413.4,2412.9,0.8037]
[1730776180338,11.28718,2413.4,2413.0,0.2924302]
[1730776180525,11.28718,2413.4,2413.1,0.2924302]
[1730776180726,11.28718,2413.4,2412.9,0.8037]
[1730776180925,11.28718,2413.4,2413.0,0.29242354]
[1730776181160,11.28718,2413.4,2412.9,0.8037]
[1730776181161,11.28718,2413.4,2413.1,0.29242354]
[1730776181366,11.28718,2413.4,2412.9,0.8037]
[1730776181520,11.28718,2413.4,2413.0,0.29241483]
[1730776181868,11.28718,2413.4,2413.1,0.29241483]
[1730776182050,11.28718,2413.4,2412.9,0.8037]
[1730776182252,11.28718,2413.4,2413.0,0.29241742]
[1730776182446,11.28718,2413.4,2413.1,0.29241742]
[1730776182751,11.28718,2413.4,2412.9,0.8037]
[1730776182954,11.28718,2413.4,2413.0,0.29243517]
[1730776183261,4.93757,2413.2,2413.1,0.29243517]
[1730776183574,3.7937,2413.2,2413.1,0.29243517]
[1730776183731,3.7937,2413.2,2412.7,4.72960409]
[1730776183932,3.7937,2413.2,2412.8,0.76051042]
[1730776184137,7.93757,2413.2,2412.9,0.29249969]
[1730776184338,3.7937,2413.2,2413.0,0.29249969]
[1730776184551,3.7937,2413.2,2412.8,4.14456]
[1730776184761,3.7937,2413.2,2412.9,0.29261122]
[1730776184932,3.7937,2413.2,2413.0,0.29261122]
[1730776185132,3.7937,2413.2,2412.8,4.14456]
[1730776185335,3.7937,2413.2,2412.9,0.29266536]
[1730776185531,3.7937,2413.2,2413.0,0.29266536]
[1730776185725,3.7937,2413.2,2412.8,4.14456]
[1730776185931,3.7937,2413.2,2412.9,0.29269741]
[1730776186163,3.7937,2413.2,2413.0,0.29269842]
[1730776186364,3.7937,2413.2,2412.8,4.14456]
[1730776186573,3.7937,2413.2,2412.8,5.45775506]
[1730776186873,3.7937,2413.2,2412.9,0.76112399]
[1730776187072,3.7937,2413.2,2413.0,0.29273567]
[1730776187287,3.0,2413.2,2413.1,0.29273567]
[1730776188727,3.0,2413.3,2413.1,0.29273567]
[1730776189037,3.0,2413.3,2413.0,0.7649]
[1730776189038,7.14373,2413.3,2413.0,0.7649]
[1730776189233,7.14373,2413.3,2413.1,0.29293235]
[1730776189567,3.0,2413.3,2413.2,0.29293235]
[1730776190056,7.1437,2413.3,2413.2,0.29293235]
[1730776190566,3.0,2413.3,2413.2,0.29293235]
[1730776190769,0.21312947,2413.3,2413.2,0.29293235]
[1730776191562,4.35682947,2413.3,2413.2,0.29293235]
[1730776192888,0.21312947,2413.3,2413.2,0.29293235]
[1730776193201,0.21312947,2413.3,2413.1,1.73307708]
[1730776193496,0.21312947,2413.3,2413.2,0.29316944]
[1730776196271,0.21312947,2413.3,2413.2,0.76258117]
[1730776196780,0.21312947,2413.3,2413.2,0.29316944]
[1730776197163,0.21312947,2413.3,2413.1,1.73307708]
[1730776197491,0.21312947,2413.3,2413.2,0.76289641]
[1730776198792,7.14336,2413.5,2413.2,0.76289641]
[1730776198963,0.21312947,2413.4,2413.3,0.29341736]
[1730776200397,0.21312947,2413.4,2413.3,0.29341341]
[1730776200614,8.99460842,2413.4,2413.3,0.29341341]
[1730776200754,8.18245947,2413.4,2413.3,0.29341341]
[1730776200950,0.21312947,2413.4,2413.3,0.29341341]
[1730776201254,0.8258,2413.9,2413.3,3.08260514]
[1730776201592,4.96857,2413.9,2413.5,2.54467708]
[1730776201951,4.14285,2413.8,2413.5,2.54467708]
[1730776202151,4.14302,2413.7,2413.5,2.54467708]
[1730776202431,4.14302,2413.7,2413.3,2.52217708]
[1730776203258,5.054187,2413.7,2413.3,2.52217708]
[1730776203867,5.054187,2413.7,2413.6,0.76257589]
[1730776204084,5.054187,2413.7,2413.6,0.29329409]
[1730776204679,5.054187,2413.7,2413.4,0.76257589]
[1730776205069,5.054187,2413.7,2413.5,0.76257589]
[1730776205794,0.20641377,2413.6,2413.5,0.76257589]
[1730776206093,1.00241377,2413.6,2413.5,0.76257589]
[1730776206520,1.00241377,2413.6,2413.5,0.76350634]
[1730776206806,0.20641377,2413.6,2413.5,0.76350634]
[1730776207306,0.20641377,2413.6,2413.5,0.76333689]
[1730776210612,0.20641377,2413.6,2413.5,1.56293689]
[1730776210781,0.82,2414.1,2413.5,8.77022852]
[1730776210987,0.20638303,2414.0,2413.6,4.90644689]
[1730776211306,0.20638303,2414.0,2413.5,6.67603708]
[1730776211515,0.20638303,2414.0,2413.7,5.87600708]
[1730776211698,0.20638303,2414.0,2413.8,0.76292556]
[1730776212004,0.20638303,2414.0,2413.9,0.29342858]
[1730776213017,4.14189,2414.4,2413.9,2.49552962]
[1730776213171,0.20714111,2414.3,2414.0,0.76245254]
[1730776213516,0.20714111,2414.3,2413.9,1.73307708]
[1730776213517,0.20714111,2414.3,2414.1,0.29342858]
[1730776213703,0.20714111,2414.3,2414.1,0.8259]
[1730776213871,0.20714111,2414.3,2414.1,6.70126708]
[1730776214086,4.14159,2414.6,2414.1,7.78563279]
[1730776214270,3.0,2414.5,2414.2,0.29289965]
[1730776214487,0.8091,2414.7,2414.3,1.73307708]
[1730776215218,4.95041,2414.7,2414.3,1.73307708]
[1730776215775,3.0,2414.6,2414.3,1.73307708]
[1730776216490,3.8091,2414.7,2414.3,1.73307708]
[1730776216814,7.95049,2414.7,2414.3,1.73307708]
[1730776218347,4.93904,2414.9,2414.4,0.7602]
[1730776218655,4.14104,2414.9,2414.5,1.73307708]
[1730776219434,4.14086,2415.0,2414.5,1.73307708]
[1730776219933,3.0,2414.9,2414.5,1.73307708]
[1730776220828,0.20754049,2414.8,2414.5,1.73307708]
[1730776221029,0.20754049,2414.8,2414.5,6.60518536]
[1730776222723,0.20754049,2414.8,2414.7,0.7546]
[1730776223059,3.5,2415.1,2414.7,2.48767708]
[1730776223060,0.5,2415.1,2414.7,2.48767708]
[1730776223274,0.5,2415.1,2414.9,5.87390708]
[1730776223421,0.5,2415.1,2415.0,0.7546]
[1730776223763,0.5,2415.1,2415.0,5.67936736]
[1730776225217,0.5,2415.1,2415.0,1.53858736]
[1730776225418,0.5,2415.1,2414.8,4.01694336]
[1730776225645,0.5,2415.1,2414.8,0.8103]
[1730776226224,4.90059,2415.0,2414.6,0.8005]
[1730776226822,4.14108,2414.9,2414.5,4.01694336]
[1730776227147,4.14108,2414.9,2414.5,4.9099437]
[1730776227351,4.90059,2415.0,2414.5,4.9099437]
[1730776227523,4.14097,2414.9,2414.5,4.9099437]
[1730776227716,4.90059,2415.0,2414.5,9.0515637]
[1730776227961,9.04151,2415.0,2414.5,4.9099437]
[1730776229362,9.04151,2415.0,2414.6,0.29276133]
[1730776229526,9.04151,2415.0,2414.5,4.9099437]
[1730776229723,9.04151,2415.0,2414.6,0.29277368]
[1730776229963,9.04151,2415.0,2414.5,4.9099437]
[1730776230264,3.0,2414.8,2414.6,0.29277157]
[1730776230433,3.0,2414.8,2414.4,0.7713]
[1730776230633,3.0,2414.8,2414.5,0.29286952]
[1730776230964,7.14124,2414.8,2414.4,0.7713]
[1730776231131,4.14131,2414.7,2414.4,0.7713]
[1730776231332,4.14131,2414.7,2414.5,0.29289076]
[1730776231664,4.14131,2414.7,2414.2,8.93466336]
[1730776231866,4.14131,2414.7,2414.3,0.76153274]
[1730776232066,4.14147,2414.6,2414.4,0.29289296]
[1730776232222,4.14131,2414.7,2414.2,8.93466336]
[1730776232424,4.14131,2414.7,2414.3,0.29294078]
[1730776232625,4.14131,2414.7,2414.2,8.93466336]
[1730776232626,4.14131,2414.7,2414.4,0.29294078]
[1730776232874,4.14131,2414.7,2414.2,8.93466336]
[1730776233175,4.14131,2414.7,2414.3,0.76165821]
[1730776233477,4.14131,2414.7,2414.4,0.29294561]
[1730776233686,4.14131,2414.7,2414.2,8.93466336]
[1730776233967,4.13331,2414.7,2414.3,0.29298396]
[1730776234157,4.13331,2414.7,2414.4,0.29298396]
[1730776234327,3.0,2414.8,2414.5,0.2929947]
[1730776234527,3.0,2414.8,2414.3,4.14197]
[1730776234728,8.28269,2414.7,2414.4,0.29297151]
[1730776234945,8.28269,2414.7,2414.5,0.29297151]
[1730776234946,4.14147,2414.6,2414.5,0.29297151]
[1730776235134,4.14172,2414.5,2414.0,0.8054]
[1730776235334,4.14192,2414.4,2414.1,1.34778186]
[1730776235669,4.14192,2414.4,2413.8,4.63100302]
[1730776235670,7.94638,2414.3,2414.2,0.29298765]
[1730776235831,5.22204948,2414.3,2413.9,0.46895749]
[1730776236036,5.22204948,2414.3,2414.0,0.29310193]
[1730776236037,7.14249,2414.1,2414.0,0.29310193]
[1730776236266,7.14249,2414.1,2413.6,4.94845]
[1730776236267,7.35106457,2414.1,2413.6,4.94845]
[1730776236453,7.35106457,2414.1,2413.7,1.34836277]
[1730776236770,7.35106457,2414.1,2413.6,4.94845]
[1730776236771,4.14262,2414.0,2413.8,0.76210779]
[1730776237060,7.13872249,2414.0,2413.9,0.76210779]
[1730776238995,3.0,2414.0,2413.9,0.76210779]
[1730776240570,4.14218,2414.2,2413.9,0.76210779]
[1730776240774,4.14218,2414.2,2413.6,4.9485]
[1730776240775,3.0,2414.2,2414.0,1.58010779]
[1730776240960,3.0,2414.2,2414.1,0.76291609]
[1730776241948,3.0,2414.2,2414.1,0.29311486]
[1730776242158,7.14215,2414.2,2414.1,0.29311486]
[1730776243351,7.14215,2414.2,2414.1,0.76381506]
[1730776243568,3.0,2414.2,2413.8,4.14281]
[1730776243748,3.0,2414.2,2413.9,1.3513712]
[1730776243945,7.14215,2414.2,2414.0,0.76382141]
[1730776244189,7.14215,2414.2,2414.1,0.76382141]
[1730776244693,3.0,2414.2,2414.1,0.76382141]
[1730776244853,3.0,2414.2,2414.1,0.76382682]
[1730776245367,3.0,2414.2,2414.1,0.2937732]
[1730776245754,7.14215,2414.2,2414.1,0.76379856]
[1730776246151,7.14215,2414.2,2414.1,0.2937732]
[1730776250497,4.14234,2414.1,2413.7,4.91625]
[1730776250791,4.14234,2414.1,2413.8,0.76367013]
[1730776250997,0.20802174,2414.0,2413.9,0.76367013]
[1730776254221,0.20802174,2414.0,2413.9,0.76389307]
[1730776254523,0.20802174,2414.0,2413.7,7.95613141]
[1730776254822,0.20802174,2414.0,2413.8,0.76444122]
[1730776255051,0.20802174,2414.0,2413.9,0.76444122]
[1730776258524,0.20802174,2414.0,2413.9,1.35334215]
[1730776261016,0.20802174,2414.0,2413.9,7.46100409]
[1730776261343,7.33,2414.8,2413.9,7.46100409]
[1730776261344,4.9617,2414.8,2414.3,4.92778]
[1730776261554,4.14097,2414.9,2414.4,6.63983474]
[1730776261848,0.2077453,2414.8,2414.5,0.76581667]
[1730776262005,0.2077453,2414.8,2414.6,0.2945406]
[1730776262006,4.3488953,2414.8,2414.6,0.2945406]
[1730776262201,4.3488953,2414.8,2414.7,0.2945406]
[1730776263315,7.3488953,2414.8,2414.7,0.2945406]
[1730776264355,7.3488953,2414.8,2414.7,0.29445744]
[1730776264721,7.3488953,2414.8,2414.7,0.2944552]
[1730776265931,7.2988953,2414.8,2414.7,0.2944552]
[1730776266135,7.34722863,2414.8,2414.7,0.2944552]
[1730776266360,9.36309849,2414.8,2414.7,0.2944552]
[1730776266517,4.14198,2414.3,2414.2,0.58879879]
[1730776266843,3.0,2414.2,2413.8,1.73223807]
[1730776267046,3.0,2414.2,2413.9,1.35473696]
[1730776267247,3.0,2414.2,2414.0,0.76571002]
[1730776267549,3.0,2414.2,2414.1,0.76571002]
[1730776268053,3.0,2414.2,2413.8,4.85752373]
[1730776268258,3.0,2414.2,2414.1,0.76574516]
[1730776269041,7.14215,2414.2,2414.1,0.76574516]
[1730776271935,7.14215,2414.2,2414.1,0.76572091]
[1730776273451,7.34883267,2414.2,2414.1,0.76572091]
[1730776274470,9.40269394,2414.2,2414.1,0.76572091]
[1730776274629,9.40269394,2414.2,2414.1,0.29450377]
[1730776274829,4.14268,2413.9,2413.4,4.63425019]
[1730776275061,0.20620151,2413.8,2413.5,1.3558416]
[1730776275263,0.20620151,2413.8,2413.6,1.3558416]
[1730776275564,0.20620151,2413.8,2413.7,0.76624684]
[1730776279374,0.20620151,2413.8,2413.6,0.7898]
[1730776279581,0.20620151,2413.8,2413.7,0.76615528]
[1730776281091,8.15554151,2413.8,2413.7,0.29467083]
[1730776281243,8.59042966,2413.8,2413.7,0.29467083]
[1730776283190,8.59042966,2413.8,2413.2,9.07631]
[1730776283376,8.15554151,2413.8,2413.3,1.35572661]
[1730776283576,8.15554151,2413.8,2413.4,0.76627829]
[1730776283888,4.01270151,2413.8,2413.5,4.90961829]
[1730776284047,0.20620151,2413.8,2413.6,5.66555829]
[1730776284247,3.0,2414.0,2413.7,1.27562058]
[1730776284481,0.20540274,2413.9,2413.8,0.29473075]
[1730776284995,0.20540274,2413.9,2413.8,5.67160816]
[1730776285446,3.0,2414.2,2413.8,5.67160816]
[1730776285643,0.20540274,2414.1,2413.9,0.29473075]
[1730776285849,0.20540274,2414.1,2414.0,0.29473075]
[1730776286248,7.34773274,2414.1,2414.0,0.29473075]
[1730776286450,7.34773274,2414.1,2413.7,0.7821]
[1730776286690,7.34773274,2414.1,2413.8,0.2945721]
[1730776286889,7.34773274,2414.1,2413.9,0.2945721]
[1730776287095,7.34773274,2414.1,2413.7,0.7821]
[1730776287602,7.34773274,2414.1,2413.8,0.29456276]
[1730776287795,7.34773274,2414.1,2413.9,0.29456276]
[1730776287979,7.34773274,2414.1,2413.7,1.688955]
[1730776288291,7.34773274,2414.1,2413.8,0.76585065]
[1730776288597,7.34773274,2414.1,2413.9,0.29455367]
[1730776288922,7.34773274,2414.1,2414.0,0.29456298]
[1730776288923,3.20540274,2414.1,2414.0,0.29456298]
[1730776290151,0.20540274,2414.1,2414.0,0.29456298]
[1730776290690,0.20540274,2414.1,2413.7,4.92503]
[1730776290905,0.20540274,2414.1,2413.8,0.76591275]
[1730776291200,4.34775274,2414.1,2413.9,0.29457429]
[1730776291487,4.34775274,2414.1,2414.0,0.2946291]
[1730776292790,0.20540274,2414.1,2414.0,0.2946291]
[1730776295130,4.34773274,2414.1,2414.0,0.2946291]
[1730776295304,9.09882501,2414.1,2414.0,0.2946291]
[1730776295506,9.09882501,2414.1,2413.5,0.58985396]
[1730776295507,4.14275,2413.9,2413.5,0.58985396]
[1730776295838,4.14275,2413.9,2413.6,1.56922088]
[1730776295999,0.20558707,2413.8,2413.7,0.76682088]
[1730776296200,0.20558707,2413.8,2413.7,1.35690595]
[1730776297006,3.0,2414.0,2413.7,1.35679176]
[1730776297211,3.0,2414.0,2413.6,0.8024]
[1730776297212,0.20558707,2413.8,2413.6,0.8024]
[1730776297425,7.1425,2414.0,2413.7,1.35703333]
[1730776297624,7.1425,2414.0,2413.8,0.76700804]
[1730776297841,7.1425,2414.0,2413.9,0.29499874]
[1730776298006,7.1425,2414.0,2413.9,0.7669884]
[1730776298527,7.1425,2414.0,2413.9,0.76701479]
[1730776298733,3.0,2414.0,2413.9,0.76701479]
[1730776298945,7.1425,2414.0,2413.9,0.76699862]
[1730776300152,8.28349,2414.5,2413.9,1.57249862]
[1730776300314,0.7802,2414.8,2414.2,0.785]
[1730776300518,4.14139,2414.7,2414.3,0.76699862]
[1730776300727,5.800104,2414.6,2414.4,0.29499519]
[1730776300936,2.7307934,2414.6,2414.5,0.29499519]
[1730776301120,4.14097,2414.9,2414.5,0.29499519]
[1730776301425,5.799219,2414.9,2414.6,1.07309519]
[1730776301645,4.14097,2414.9,2414.7,0.29499519]
[1730776301951,4.14097,2414.9,2414.6,0.7781]
[1730776302150,4.14097,2414.9,2414.7,0.29482918]
[1730776302301,4.14097,2414.9,2414.6,0.7781]
[1730776302502,4.14097,2414.9,2414.7,0.29470581]
[1730776302718,4.14097,2414.9,2414.6,0.7781]
[1730776303020,4.14097,2414.9,2414.7,0.29470371]
[1730776303363,4.14097,2414.9,2414.6,0.7781]
[1730776303548,2.438393,2415.0,2414.1,4.02062605]
[1730776303549,1.658193,2415.0,2414.7,8.45651475]
[1730776303724,1.658193,2415.0,2414.8,6.53797214]
[1730776304043,1.658193,2415.0,2414.9,5.69215066]
[1730776304257,0.5,2415.1,2414.9,1.55120066]
[1730776304433,0.20558707,2415.0,2414.9,4.92635]
[1730776304744,0.20558707,2415.0,2414.9,7.03001532]
[1730776304946,0.20558707,2415.0,2414.9,6.26529987]
[1730776305245,0.20558707,2415.0,2414.9,2.41847101]
[1730776305405,0.20558707,2415.0,2414.9,1.07952114]
[1730776306005,0.20558707,2415.0,2414.9,0.29412114]
[1730776306209,4.34636707,2415.0,2414.6,1.25060272]
[1730776306423,4.34636707,2415.0,2414.7,0.29388767]
[1730776306424,0.20558707,2415.0,2414.7,0.29388767]
[1730776306710,0.20558707,2415.0,2414.6,0.7802]
[1730776306902,0.20558707,2415.0,2414.7,0.29422335]
[1730776307107,0.20558707,2415.0,2414.6,1.67443561]
[1730776307678,4.34637707,2415.0,2414.6,1.67443561]
[1730776309669,4.34637707,2415.0,2414.3,4.14185]
[1730776309828,4.95607,2414.9,2414.4,1.55127015]
[1730776310031,0.2062832,2414.8,2414.5,0.2940612]
[1730776310233,0.2062832,2414.8,2414.4,0.7867]
[1730776310450,4.3474132,2414.8,2414.5,0.29406942]
[1730776310649,4.3474132,2414.8,2414.4,0.7867]
[1730776310859,4.3474132,2414.8,2414.5,0.29408788]
[1730776311065,4.3474132,2414.8,2414.4,0.7867]
[1730776311361,0.2062832,2414.8,2414.5,0.29408763]
[1730776311566,0.2062832,2414.8,2414.4,4.92851]
[1730776311773,0.2062832,2414.8,2414.4,5.83555]
[1730776311942,0.2062832,2414.8,2414.5,0.29407861]
[1730776312270,0.2062832,2414.8,2414.4,5.83548]
[1730776312466,0.2062832,2414.8,2414.5,0.29409136]
[1730776312640,0.2062832,2414.8,2414.4,5.83548]
[1730776312969,0.2062832,2414.8,2414.5,0.29408767]
[1730776313269,0.2062832,2414.8,2414.4,5.83548]
[1730776313472,0.2062832,2414.8,2414.5,0.29408107]
[1730776313680,0.2062832,2414.8,2414.4,5.83548]
[1730776313834,0.2062832,2414.8,2414.5,0.29410034]
[1730776314167,0.2062832,2414.8,2414.4,5.83548]
[1730776314374,0.2062832,2414.8,2414.5,1.29179848]
[1730776314558,0.2062832,2414.8,2414.5,0.997737]
[1730776316182,4.3474132,2414.8,2414.4,4.92844]
[1730776316382,4.3474132,2414.8,2414.5,0.29407285]
[1730776316525,4.3474132,2414.8,2414.4,4.92844]
[1730776316730,0.2062832,2414.8,2414.5,0.29407782]
[1730776316931,4.14131,2414.7,2414.4,0.7867]
[1730776317173,4.14113,2414.8,2414.4,0.7867]
[1730776317334,0.2062832,2414.6,2414.5,0.29413419]
[1730776317695,6.61427,2414.9,2414.5,0.29413419]
[1730776317969,0.2062832,2414.8,2414.4,4.92849]
[1730776318140,0.2062832,2414.8,2414.5,0.29411755]
[1730776318467,0.2062832,2414.8,2414.4,4.92849]